fUST/lending_fUST_20250624
["ID","MTS","AMOUNT","RATE_DAILY","PERIOD"]
[367296041,1750734641995,-460.0,0.00019236,2]
[367296042,1750734642006,-460.0,0.00019236,2]
[367296043,1750734642015,-460.0,0.00019236,2]
[367296044,1750734642024,-460.0,0.00019236,2]
[367296045,1750734642034,-460.0,0.00019236,2]
[367296046,1750734642044,-460.0,0.00019236,2]
[367296047,1750734642053,-460.0,0.00019236,2]
[367296048,1750734642063,-460.0,0.00019236,2]
[367296049,1750734642072,-460.0,0.00019236,2]
[367296050,1750734642081,-460.0,0.00019236,2]
[367296051,1750734642091,-460.0,0.00019236,2]
[367296052,1750734642100,-460.0,0.00019236,2]
[367296053,1750734642109,-460.0,0.00019236,2]
[367296054,1750734642119,-460.0,0.00019236,2]
[367296055,1750734642128,-460.0,0.00019236,2]
[367296056,1750734642138,-436.89,0.00019237,2]
[367296057,1750734642147,-151.0,0.00019239,2]
[367296058,1750734642157,-151.0,0.00019239,2]
[367296059,1750734642166,-543.938955,0.00019239,2]
[367296060,1750734642175,-543.938955,0.00019239,2]
[367296061,1750734642185,-151.0,0.00019248,2]
[367296062,1750734642195,-151.0,0.00019251,2]
[367296063,1750734642204,-543.938955,0.00019251,2]
[367296064,1750734642213,-543.938955,0.00019251,2]
[367296065,1750734642223,-160.0,0.00019298,6]
[367296066,1750734642232,-500.0,0.00019306,2]
[367296067,1750734642241,-500.0,0.00019333,2]
[367296068,1750734642250,-500.0,0.00019361,2]
[367296069,1750734642260,-1858.98038747,0.00019371,2]
[367296070,1750734642269,-153.0,0.00019388,2]
[367296071,1750734642279,-460.0,0.00019459,2]
[367296072,1750734642288,-460.0,0.00019459,2]
[367296073,1750734642297,-460.0,0.00019459,2]
[367296074,1750734642307,-460.0,0.00019459,2]
[367296075,1750734642315,-2155.91,0.00019459,2]
[367296076,1750734642325,-460.0,0.00019459,2]
[367296077,1750734642334,-460.0,0.00019459,2]
[367296078,1750734642344,-460.0,0.00019459,2]
[367296079,1750734642354,-460.0,0.0001946,2]
[367296080,1750734642363,-460.0,0.0001946,2]
[367296081,1750734642373,-460.0,0.0001946,2]
[367296082,1750734642382,-460.0,0.0001946,2]
[367296083,1750734642391,-2146.74,0.0001946,2]
[367296084,1750734642400,-2602.89,0.0001946,2]
[367296085,1750734642410,-939.11,0.0001946,2]
[367296086,1750734642419,-460.0,0.0001946,2]
[367296087,1750734642427,-460.0,0.0001946,2]
[367296088,1750734642436,-465.78,0.0001946,2]
[367296089,1750734642445,-2021.02,0.0001946,2]
[367296090,1750734642454,-460.0,0.0001946,2]
[367296091,1750734642463,-1914.93,0.0001946,2]
[367296092,1750734642472,-3353.21,0.0001946,2]
[367296093,1750734642481,-503.87782392,0.0001946,2]
[367296094,1750734642490,-460.0,0.0001946,2]
[367296095,1750734642499,-1381.75,0.0001946,2]
[367296096,1750734642510,-460.0,0.0001946,2]
[367296097,1750734642521,-737.82,0.0001946,2]
[367296098,1750734642531,-1173.71,0.0001946,2]
[367296099,1750734642542,-915.86,0.0001946,2]
[367296100,1750734642552,-1736.56,0.0001946,2]
[367296101,1750734642562,-672.1,0.0001946,2]
[367296102,1750734642571,-460.0,0.0001946,2]
[367296103,1750734642581,-460.0,0.0001946,2]
[367296104,1750734642590,-900.79,0.0001946,2]
[367296106,1750734642599,-656.29,0.0001946,2]
[367296108,1750734642608,-460.0,0.0001947,2]
[367296110,1750734642618,-500.56,0.0001947,2]
[367296112,1750734642627,-605.98986955,0.0001947,2]
[367296114,1750734642636,-460.0,0.0001947,2]
[367296116,1750734642647,-574.91,0.0001947,2]
[367296118,1750734642658,-460.0,0.0001947,2]
[367296119,1750734642668,-460.0,0.0001947,2]
[367296120,1750734642677,-460.0,0.0001947,2]
[367296121,1750734642686,-801.98,0.0001947,2]
[367296122,1750734642696,-460.0,0.0001947,2]
[367296124,1750734642705,-460.0,0.0001947,2]
[367296126,1750734642714,-460.0,0.0001947,2]
[367296128,1750734642724,-460.0,0.0001947,2]
[367296129,1750734642733,-1199.09,0.0001947,2]
[367296130,1750734642742,-765.11,0.0001947,2]
[367296131,1750734642751,-829.72,0.0001947,2]
[367296132,1750734642760,-550.20342152,0.0001947,2]
[367296133,1750734642769,-460.0,0.0001947,2]
[367296134,1750734642779,-460.0,0.0001947,2]
[367296135,1750734642788,-1200.67,0.0001947,2]
[367296136,1750734642797,-460.0,0.0001947,2]
[367296137,1750734642806,-460.0,0.00019471,2]
[367296138,1750734642815,-372.02718125,0.00019471,2]
[367296139,1750734642824,-460.0,0.00019471,2]
[367296140,1750734642834,-460.0,0.00019471,2]
[367296141,1750734642843,-460.0,0.00019471,2]
[367296142,1750734642853,-460.0,0.00019471,2]
[367296143,1750734642862,-460.0,0.00019471,2]
[367296144,1750734642871,-523.6,0.00019471,2]
[367296145,1750734642880,-460.0,0.00019471,2]
[367296146,1750734642889,-460.0,0.00019471,2]
[367296147,1750734642899,-460.0,0.00019471,2]
[367296149,1750734642908,-460.0,0.00019471,2]
[367296151,1750734642917,-460.0,0.00019471,2]
[367296152,1750734642926,-460.0,0.00019471,2]
[367296153,1750734642935,-460.0,0.00019471,2]
[367296154,1750734642946,-460.0,0.00019471,2]
[367296155,1750734642958,-460.0,0.00019471,2]
[367296156,1750734642967,-460.0,0.00019471,2]
[367296157,1750734642978,-625.0,0.00019471,2]
[367296158,1750734642987,-460.0,0.00019471,2]
[367296159,1750734642999,-449.79514169,0.00019471,2]
[367296160,1750734643009,-460.0,0.00019471,2]
[367296161,1750734643018,-460.0,0.00019471,2]
[367296162,1750734643028,-460.0,0.00019471,2]
[367296163,1750734643038,-460.0,0.00019471,2]
[367296164,1750734643047,-460.0,0.00019471,2]
[367296165,1750734643057,-460.0,0.00019471,2]
[367296166,1750734643067,-460.0,0.00019471,2]
[367296167,1750734643076,-460.0,0.00019471,2]
[367296168,1750734643086,-551.04,0.00019471,2]
[367296169,1750734643096,-460.0,0.00019471,2]
[367296170,1750734643106,-459.73362869,0.00019471,2]
[367296171,1750734643115,-478.7304356,0.00019471,2]
[367296172,1750734643126,-811.65,0.00019471,2]
[367296173,1750734643136,-460.0,0.00019471,2]
[367296174,1750734643146,-6180.17,0.00019471,2]
[367296175,1750734643156,-958.69,0.00019471,2]
[367296176,1750734643166,-460.0,0.00019471,2]
[367296178,1750734643175,-889.41,0.00019471,2]
[367296180,1750734643185,-460.0,0.00019471,2]
[367296182,1750734643194,-1041.7,0.00019471,2]
[367296184,1750734643204,-890.43,0.00019471,2]
[367296186,1750734643214,-460.0,0.00019471,2]
[367296188,1750734643224,-508.85404565,0.00019471,2]
[367296190,1750734643233,-460.0,0.00019471,2]
[367296192,1750734643243,-460.0,0.00019471,2]
[367296194,1750734643253,-460.0,0.00019471,2]
[367296196,1750734643262,-460.0,0.00019471,2]
[367296198,1750734643272,-460.0,0.00019471,2]
[367296200,1750734643281,-802.31,0.00019471,2]
[367296202,1750734643291,-460.0,0.00019471,2]
[367296204,1750734643300,-2374.63,0.00019471,2]
[367296206,1750734643309,-498.3250849,0.00019471,2]
[367296208,1750734643318,-460.0,0.00019471,2]
[367296210,1750734643327,-460.0,0.00019471,2]
[367296212,1750734643336,-460.0,0.00019471,2]
[367296214,1750734643345,-460.0,0.00019471,2]
[367296216,1750734643354,-830.91,0.00019471,2]
[367296218,1750734643363,-460.0,0.00019471,2]
[367296220,1750734643373,-662.2,0.00019471,2]
[367296222,1750734643383,-460.0,0.00019471,2]
[367296224,1750734643393,-460.0,0.00019471,2]
[367296226,1750734643403,-460.0,0.00019471,2]
[367296228,1750734643412,-712.19,0.00019471,2]
[367296230,1750734643421,-460.0,0.00019471,2]
[367296232,1750734643431,-460.0,0.00019471,2]
[367296234,1750734643441,-460.0,0.00019471,2]
[367296236,1750734643451,-460.0,0.00019472,2]
[367296238,1750734643460,-460.0,0.00019472,2]
[367296240,1750734643470,-460.0,0.00019472,2]
[367296242,1750734643479,-460.0,0.00019472,2]
[367296244,1750734643489,-460.0,0.00019472,2]
[367296246,1750734643498,-460.0,0.00019472,2]
[367296248,1750734643507,-460.0,0.00019472,2]
[367296251,1750734643517,-460.0,0.00019472,2]
[367296254,1750734643526,-723.65,0.00019472,2]
[367296257,1750734643535,-155.20103088,0.00019472,2]
[367296260,1750734643544,-460.0,0.00019472,2]
[367296263,1750734643554,-460.0,0.00019472,2]
[367296266,1750734643563,-460.0,0.00019472,2]
[367296269,1750734643572,-460.0,0.00019472,2]
[367296272,1750734643582,-460.0,0.00019472,2]
[367296274,1750734643591,-500.0,0.00019472,2]
[367296276,1750734643600,-811.96,0.00019472,2]
[367296278,1750734643609,-460.0,0.00019472,2]
[367296280,1750734643618,-460.0,0.00019472,2]
[367296282,1750734643627,-460.0,0.00019472,2]
[367296284,1750734643637,-460.0,0.00019472,2]
[367296286,1750734643646,-2658.65,0.00019472,2]
[367296288,1750734643656,-460.0,0.00019472,2]
[367296290,1750734643665,-460.0,0.00019472,2]
[367296292,1750734643675,-623.14,0.00019472,2]
[367296294,1750734643684,-2482.28,0.00019472,2]
[367296296,1750734643693,-460.0,0.00019472,2]
[367296298,1750734643703,-460.0,0.00019472,2]
[367296300,1750734643712,-3926.03,0.00019472,2]
[367296302,1750734643720,-508.6,0.00019472,2]
[367296304,1750734643730,-2433.37,0.00019472,2]
[367296306,1750734643739,-460.0,0.00019472,2]
[367296308,1750734643748,-460.0,0.00019472,2]
[367296310,1750734643757,-460.0,0.00019472,2]
[367296312,1750734643766,-460.0,0.00019472,2]
[367296314,1750734643775,-1500.4,0.00019472,2]
[367296316,1750734643784,-460.0,0.00019472,2]
[367296318,1750734643793,-460.0,0.00019472,2]
[367296320,1750734643802,-460.0,0.00019472,2]
[367296322,1750734643811,-460.0,0.00019472,2]
[367296324,1750734643820,-460.0,0.00019472,2]
[367296326,1750734643829,-454.1589455,0.000195,2]
[367296328,1750734643838,-460.0,0.00019501,2]
[367296330,1750734643848,-460.0,0.00019501,2]
[367296332,1750734643857,-615.54,0.00019501,2]
[367296334,1750734643866,-460.0,0.00019501,2]
[367296336,1750734643876,-460.0,0.00019501,2]
[367296338,1750734643885,-460.0,0.00019501,2]
[367296340,1750734643894,-460.0,0.00019501,2]
[367296342,1750734643903,-460.0,0.00019501,2]
[367296344,1750734643912,-460.0,0.00019501,2]
[367296346,1750734643921,-590.17,0.00019501,2]
[367296348,1750734643931,-460.0,0.00019501,2]
[367296350,1750734643940,-556.58,0.00019501,2]
[367296352,1750734643949,-237.78849566,0.00019501,2]
[367296354,1750734643958,-460.0,0.00019501,2]
[367296356,1750734643968,-460.0,0.00019501,2]
[367296358,1750734643980,-460.0,0.00019501,2]
[367296360,1750734643989,-460.0,0.00019501,2]
[367296362,1750734643998,-460.0,0.00019501,2]
[367296364,1750734644007,-460.0,0.00019501,2]
[367296366,1750734644017,-272.83999872,0.00019501,2]
[367296368,1750734644026,-271.46239189,0.00019501,2]
[367296370,1750734644034,-270.14,0.00019501,2]
[367296372,1750734644043,-151.0,0.00019501,2]
[367296374,1750734644053,-151.0,0.00019501,2]
[367296376,1750734644063,-151.0,0.00019501,2]
[367296388,1750734644161,-160.0,0.00019505,7]
[367296391,1750734644182,-151.0,0.0001951,2]
[367296393,1750734644191,-460.0,0.0001951,2]
[367296395,1750734644200,-460.0,0.0001951,2]
[367296397,1750734644210,-1317.68,0.0001951,2]
[367296399,1750734644219,-460.0,0.0001951,2]
[367296401,1750734644229,-397.29,0.0001951,2]
[367296403,1750734644239,-460.0,0.0001951,2]
[367296405,1750734644247,-460.0,0.0001951,2]
[367296407,1750734644257,-460.0,0.0001951,2]
[367296409,1750734644266,-543.938955,0.0001951,2]
[367296411,1750734644276,-460.0,0.0001951,2]
[367296413,1750734644285,-543.938955,0.0001951,2]
[367296415,1750734644294,-460.0,0.0001951,2]
[367296416,1750734644305,-460.0,0.0001951,2]
[367296418,1750734644314,-360.0,0.0001951,2]
[367296420,1750734644324,-460.0,0.0001951,2]
[367296422,1750734644333,-460.0,0.0001951,2]
[367296424,1750734644342,-460.0,0.0001951,2]
[367296427,1750734644352,-460.0,0.0001951,2]
[367296428,1750734644361,-592.57,0.0001951,2]
[367296430,1750734644370,-460.0,0.0001951,2]
[367296432,1750734644380,-460.0,0.0001951,2]
[367296434,1750734644389,-460.0,0.0001951,2]
[367296436,1750734644399,-152.835461,0.0001951,2]
[367296438,1750734644408,-231.263963,0.0001951,2]
[367296440,1750734644418,-152.835461,0.0001951,2]
[367296442,1750734644427,-231.263963,0.0001951,2]
[367296444,1750734644436,-1023.00136,0.0001951,2]
[367296446,1750734644446,-1023.00136,0.0001951,2]
[367296448,1750734644455,-151.0,0.00019512,2]
[367296450,1750734644464,-151.0,0.00019522,2]
[367296452,1750734644473,-543.938955,0.00019522,2]
[367296454,1750734644482,-543.938955,0.00019522,2]
[367296456,1750734644492,-152.931668,0.00019539,2]
[367296458,1750734644501,-151.0,0.000196,2]
[367296460,1750734644511,-545.0,0.00019601,3]
[367296462,1750734644520,-414.59811191,0.00019616,2]
[367296464,1750734644529,-160.0,0.00019631,2]
[367296466,1750734644538,-836.80226758,0.00019631,2]
[367296468,1750734644548,-846.68469334,0.00019631,2]
[367296469,1750734644556,-160.0,0.00019631,2]
[367296470,1750734644565,-230.20892031,0.00019631,2]
[367296471,1750734644574,-425.14181427,0.00019631,2]
[367296472,1750734644583,-160.0,0.00019631,2]
[367296473,1750734644593,-12556.00642039,0.00019631,2]
[367296474,1750734644602,-160.0,0.00019631,2]
[367296475,1750734644611,-213.66798275,0.00019631,2]
[367296476,1750734644619,-160.0,0.00019631,2]
[367296477,1750734644628,-160.0,0.00019631,2]
[367296478,1750734644637,-160.0,0.00019631,2]
[367296479,1750734644646,-151.0,0.00019665,2]
[367296480,1750734644656,-151.0,0.00019665,2]
[367296481,1750734644665,-336.915745,0.00019665,2]
[367296482,1750734644674,-336.915745,0.00019665,2]
[367296483,1750734644682,-478.18488,0.00019665,2]
[367296484,1750734644691,-478.18488,0.00019665,2]
[367296485,1750734644700,-226.819998,0.00019665,2]
[367296486,1750734644710,-226.819998,0.00019665,2]
[367296488,1750734644719,-294.752646,0.00019665,2]
[367296490,1750734644729,-294.752646,0.00019665,2]
[367296492,1750734644738,-151.0,0.00019665,2]
[367296494,1750734644748,-191.127107,0.00019665,2]
[367296496,1750734644758,-160.0,0.00019712,8]
[367296498,1750734644767,-1527.846,0.00019712,2]
[367296500,1750734644777,-177.62784658,0.00019712,2]
[367296502,1750734644786,-1858.98038746,0.00019723,2]
[367296504,1750734644796,-460.0,0.00019733,2]
[367296506,1750734644805,-460.0,0.00019733,2]
[367296508,1750734644814,-460.0,0.00019733,2]
[367296510,1750734644824,-460.0,0.00019733,2]
[367296512,1750734644833,-2155.91,0.00019733,2]
[367296514,1750734644842,-460.0,0.00019733,2]
[367296516,1750734644851,-460.0,0.00019733,2]
[367296518,1750734644860,-460.0,0.00019733,2]
[367296520,1750734644870,-460.0,0.00019734,2]
[367296522,1750734644879,-460.0,0.00019734,2]
[367296524,1750734644887,-460.0,0.00019734,2]
[367296526,1750734644896,-2146.74,0.00019734,2]
[367296528,1750734644905,-2602.89,0.00019734,2]
[367296530,1750734644915,-939.11,0.00019734,2]
[367296532,1750734644924,-460.0,0.00019734,2]
[367296534,1750734644933,-465.78,0.00019734,2]
[367296536,1750734644942,-2021.02,0.00019734,2]
[367296538,1750734644952,-1914.93,0.00019734,2]
[367296540,1750734644963,-3353.21,0.00019734,2]
[367296542,1750734644972,-460.0,0.00019734,2]
[367296544,1750734644982,-1381.75,0.00019734,2]
[367296546,1750734644991,-460.0,0.00019734,2]
[367296548,1750734645000,-737.82,0.00019734,2]
[367296550,1750734645010,-1173.71,0.00019734,2]
[367296552,1750734645019,-915.86,0.00019734,2]
[367296554,1750734645028,-1736.56,0.00019734,2]
[367296556,1750734645040,-672.1,0.00019734,2]
[367296558,1750734645049,-607.26,0.00019734,2]
[367296560,1750734645058,-900.79,0.00019734,2]
[367296562,1750734645068,-656.29,0.00019734,2]
[367296564,1750734645077,-5000.0,0.00019734,2]
[367296566,1750734645086,-151.0,0.00019735,2]
[367296568,1750734645095,-460.0,0.00019744,2]
[367296570,1750734645105,-574.91,0.00019744,2]
[367296571,1750734645114,-460.0,0.00019744,2]
[367296573,1750734645123,-801.98,0.00019744,2]
[367296576,1750734645134,-460.0,0.00019744,2]
[367296578,1750734645143,-460.0,0.00019744,2]
[367296579,1750734645152,-460.0,0.00019744,2]
[367296581,1750734645161,-1199.09,0.00019744,2]
[367296583,1750734645170,-765.11,0.00019744,2]
[367296585,1750734645179,-829.72,0.00019744,2]
[367296587,1750734645189,-460.0,0.00019744,2]
[367296589,1750734645198,-1200.67,0.00019744,2]
[367296591,1750734645207,-460.0,0.00019744,2]
[367296593,1750734645216,-460.0,0.00019745,2]
[367296595,1750734645226,-460.0,0.00019745,2]
[367296597,1750734645235,-460.0,0.00019745,2]
[367296600,1750734645247,-460.0,0.00019745,2]
[367296601,1750734645256,-462.01,0.00019745,2]
[367296603,1750734645265,-460.0,0.00019745,2]
[367296605,1750734645274,-399.34,0.00019745,2]
[367296607,1750734645282,-460.0,0.00019745,2]
[367296609,1750734645292,-460.0,0.00019745,2]
[367296611,1750734645301,-151.0,0.00019745,2]
[367296613,1750734645311,-204.003028,0.00019745,2]
[367296616,1750734645320,-204.003028,0.00019745,2]
[367296617,1750734645330,-151.0,0.00019745,2]
[367296619,1750734645339,-151.0,0.00019745,2]
[367296621,1750734645350,-151.0,0.00019745,2]
[367296623,1750734645360,-625.0,0.00019745,2]
[367296624,1750734645369,-460.0,0.00019745,2]
[367296626,1750734645378,-1198.060485,0.00019745,2]
[367296628,1750734645388,-1198.060485,0.00019745,2]
[367296630,1750734645397,-611.688295,0.00019745,2]
[367296631,1750734645407,-611.688295,0.00019745,2]
[367296632,1750734645417,-151.0,0.00019745,2]
[367296633,1750734645426,-460.0,0.00019745,2]
[367296634,1750734645436,-460.0,0.00019745,2]
[367296635,1750734645445,-460.0,0.00019745,2]
[367296636,1750734645455,-435.83,0.00019745,2]
[367296637,1750734645464,-460.0,0.00019745,2]
[367296638,1750734645474,-551.04,0.00019745,2]
[367296639,1750734645483,-460.0,0.00019745,2]
[367296640,1750734645493,-811.65,0.00019745,2]
[367296641,1750734645502,-460.0,0.00019745,2]
[367296642,1750734645511,-6180.17,0.00019745,2]
[367296643,1750734645521,-958.69,0.00019745,2]
[367296644,1750734645530,-889.41,0.00019745,2]
[367296645,1750734645539,-460.0,0.00019745,2]
[367296646,1750734645549,-1041.7,0.00019745,2]
[367296647,1750734645558,-890.43,0.00019745,2]
[367296648,1750734645567,-498.37,0.00019745,2]
[367296650,1750734645576,-460.0,0.00019745,2]
[367296651,1750734645586,-460.0,0.00019745,2]
[367296652,1750734645595,-460.0,0.00019745,2]
[367296653,1750734645605,-802.31,0.00019745,2]
[367296654,1750734645614,-460.0,0.00019745,2]
[367296656,1750734645624,-2374.63,0.00019745,2]
[367296657,1750734645634,-460.0,0.00019745,2]
[367296659,1750734645643,-460.0,0.00019745,2]
[367296660,1750734645653,-830.91,0.00019745,2]
[367296661,1750734645666,-662.2,0.00019745,2]
[367296662,1750734645675,-460.0,0.00019745,2]
[367296663,1750734645685,-460.0,0.00019745,2]
[367296664,1750734645694,-460.0,0.00019745,2]
[367296665,1750734645703,-712.19,0.00019745,2]
[367296666,1750734645712,-460.0,0.00019745,2]
[367296667,1750734645721,-460.0,0.00019745,2]
[367296668,1750734645731,-460.0,0.00019746,2]
[367296669,1750734645740,-460.0,0.00019746,2]
[367296670,1750734645749,-460.0,0.00019746,2]
[367296671,1750734645758,-460.0,0.00019746,2]
[367296672,1750734645767,-460.0,0.00019746,2]
[367296673,1750734645777,-460.0,0.00019746,2]
[367296674,1750734645786,-723.65,0.00019746,2]
[367296675,1750734645795,-460.0,0.00019746,2]
[367296676,1750734645804,-460.0,0.00019746,2]
[367296677,1750734645814,-460.0,0.00019746,2]
[367296678,1750734645824,-460.0,0.00019746,2]
[367296679,1750734645834,-811.96,0.00019746,2]
[367296680,1750734645844,-503.42,0.00019746,2]
[367296681,1750734645853,-460.0,0.00019746,2]
[367296682,1750734645862,-460.0,0.00019746,2]
[367296683,1750734645871,-460.0,0.00019746,2]
[367296684,1750734645880,-2658.65,0.00019746,2]
[367296685,1750734645889,-460.0,0.00019746,2]
[367296686,1750734645898,-460.0,0.00019746,2]
[367296687,1750734645907,-623.14,0.00019746,2]
[367296688,1750734645916,-2482.28,0.00019746,2]
[367296689,1750734645925,-460.0,0.00019746,2]
[367296690,1750734645934,-541.28,0.00019746,2]
[367296691,1750734645943,-3926.03,0.00019746,2]
[367296692,1750734645953,-152.835461,0.00019746,2]
[367296693,1750734645962,-231.263963,0.00019746,2]
[367296694,1750734645973,-152.835461,0.00019746,2]
[367296695,1750734645983,-231.263963,0.00019746,2]
[367296696,1750734645992,-2433.37,0.00019746,2]
[367296697,1750734646001,-460.0,0.00019746,2]
[367296698,1750734646011,-460.0,0.00019746,2]
[367296699,1750734646020,-460.0,0.00019746,2]
[367296700,1750734646030,-151.0,0.00019746,2]
[367296701,1750734646039,-460.0,0.00019746,2]
[367296703,1750734646048,-1500.4,0.00019746,2]
[367296705,1750734646057,-460.0,0.00019746,2]
[367296707,1750734646067,-460.0,0.00019746,2]
[367296709,1750734646077,-1023.00136,0.00019746,2]
[367296711,1750734646086,-1023.00136,0.00019746,2]
[367296713,1750734646095,-606.04,0.00019746,2]
[367296715,1750734646104,-460.0,0.00019746,2]
[367296717,1750734646113,-151.0,0.00019746,2]
[367296719,1750734646123,-460.0,0.00019746,2]
[367296721,1750734646132,-151.0,0.00019747,2]
[367296723,1750734646141,-336.915745,0.00019747,2]
[367296725,1750734646150,-336.915745,0.00019747,2]
[367296727,1750734646159,-226.819998,0.00019747,2]
[367296729,1750734646168,-226.819998,0.00019747,2]
[367296731,1750734646177,-294.752646,0.00019747,2]
[367296743,1750734646282,-294.752646,0.00019747,2]
[367296745,1750734646292,-151.0,0.00019747,2]
[367296747,1750734646302,-364.25,0.00019775,2]
[367296749,1750734646311,-615.54,0.00019775,2]
[367296751,1750734646320,-460.0,0.00019775,2]
[367296753,1750734646329,-460.0,0.00019775,2]
[367296755,1750734646338,-356.05123491,0.00019775,2]
[367296757,1750734646348,-186.96,0.00019775,2]
[367296759,1750734646357,-151.0,0.00019775,2]
[367296761,1750734646366,-151.0,0.00019775,2]
[367296763,1750734646375,-460.0,0.00019775,2]
[367296765,1750734646384,-151.0,0.00019775,2]
[367296767,1750734646393,-151.0,0.00019775,2]
[367296769,1750734646403,-418.15,0.00019775,2]
[367296770,1750734646411,-460.0,0.00019775,2]
[367296772,1750734646421,-151.0,0.00019775,2]
[367296774,1750734646430,-151.0,0.00019775,2]
[367296776,1750734646440,-151.0,0.00019775,2]
[367296778,1750734646449,-460.0,0.00019775,2]
[367296780,1750734646458,-247.3,0.00019775,2]
[367296782,1750734646467,-460.0,0.00019775,2]
[367296784,1750734646477,-319.828549,0.00019775,2]
[367296786,1750734646487,-319.828549,0.00019775,2]
[367296788,1750734646496,-151.0,0.00019775,2]
[367296790,1750734646505,-1943.37879,0.00019775,2]
[367296792,1750734646515,-151.0,0.00019775,2]
[367296794,1750734646524,-151.0,0.00019775,2]
[367296796,1750734646533,-478.18488,0.00019775,2]
[367296798,1750734646543,-478.18488,0.00019775,2]
[367296800,1750734646552,-151.0,0.00019784,2]
[367296802,1750734646562,-460.0,0.00019784,2]
[367296804,1750734646571,-596.76,0.00019784,2]
[367296806,1750734646580,-1317.68,0.00019784,2]
[367296808,1750734646589,-460.0,0.00019784,2]
[367296810,1750734646598,-298.45,0.00019784,2]
[367296812,1750734646607,-285.09,0.00019784,2]
[367296814,1750734646616,-511.02,0.00019784,2]
[367296816,1750734646625,-543.938955,0.00019784,2]
[367296818,1750734646635,-543.938955,0.00019784,2]
[367296820,1750734646644,-460.0,0.00019784,2]
[367296822,1750734646653,-460.0,0.00019784,2]
[367296824,1750734646662,-357.53,0.00019784,2]
[367296825,1750734646671,-188.84,0.00019784,2]
[367296827,1750734646680,-420.99,0.00019784,2]
[367296829,1750734646689,-460.0,0.00019784,2]
[367296831,1750734646698,-151.0,0.00019784,2]
[367296833,1750734646708,-267.02,0.00019784,2]
[367296835,1750734646717,-584.1579768,0.00019796,2]
[367296837,1750734646726,-151.0,0.00019799,2]
[367296839,1750734646736,-151.0,0.00019799,2]
[367296841,1750734646745,-151.0,0.00019799,2]
[367296843,1750734646754,-151.0,0.00019799,2]
[367296845,1750734646764,-151.0,0.00019799,2]
[367296847,1750734646773,-611.688295,0.00019799,2]
[367296849,1750734646782,-611.688295,0.00019799,2]
[367296851,1750734646792,-1000.0,0.000198,4]
[367296853,1750734646801,-1000.0,0.000198,5]
[367296855,1750734646810,-151.0,0.000198,2]
[367296857,1750734646819,-151.0,0.000198,2]
[367296859,1750734646828,-151.0,0.000198,2]
[367296861,1750734646838,-151.0,0.000198,2]
[367296863,1750734646848,-151.0,0.000198,2]
[367296865,1750734646858,-636.229513,0.000198,2]
[367296867,1750734646867,-636.229513,0.000198,2]
[367296869,1750734646877,-151.165281,0.000198,2]